bitfinex/quotes_BTCUSD_20220306
["timestamp","ask_amount","ask_price","bid_price","bid_amount"]
[1646584683452,0.025,39227.0,39221.0,0.00022006]
[1646584684255,0.025,39227.0,39222.0,0.331066]
[1646584684954,0.21014181,39228.0,39221.0,0.00022006]
[1646584685206,0.21014181,39228.0,39222.0,0.331066]
[1646584685411,0.21014181,39228.0,39221.0,0.00022006]
[1646584685611,0.21014181,39228.0,39217.0,0.38750673]
[1646584685808,0.21014181,39228.0,39218.0,0.3311]
[1646584686008,0.21014181,39228.0,39221.0,0.0002192]
[1646584687010,0.21014181,39228.0,39222.0,0.331066]
[1646584687211,0.21014181,39228.0,39222.0,0.331065]
[1646584687612,0.60186281,39232.0,39221.0,0.0002192]
[1646584687916,0.53808081,39232.0,39221.0,0.0002192]
[1646584688110,0.41252006,39232.0,39218.0,0.331097]
[1646584688314,0.03817068,39232.0,39221.0,0.00020399]
[1646584688512,0.12556075,39234.0,39223.0,0.19242661]
[1646584688712,0.12556075,39234.0,39229.0,0.06302348]
[1646584688966,0.15489945,39237.0,39233.0,0.00028049]
[1646584688967,0.12556075,39237.0,39233.0,0.00028049]
[1646584689162,0.15489945,39242.0,39236.0,0.00028049]
[1646584689367,0.15489945,39242.0,39230.0,0.330985]
[1646584689562,0.17462146,39239.0,39230.0,0.330985]
[1646584689759,0.17462146,39239.0,39234.0,0.00028049]
[1646584689961,0.17462146,39239.0,39238.0,0.00028049]
[1646584690960,0.19572715,39242.0,39238.0,0.00028049]
[1646584691262,0.19572715,39242.0,39228.0,0.325996]
[1646584691263,0.063766,39241.0,39228.0,0.325996]
[1646584691462,0.31056438,39240.0,39228.0,0.325996]
[1646584692060,0.31056438,39240.0,39226.0,0.01273]
[1646584692061,0.2153063,39235.0,39226.0,0.01273]
[1646584692261,0.18643309,39231.0,39227.0,0.326011]
[1646584692712,0.2153063,39235.0,39227.0,0.326011]
[1646584693514,0.18128128,39233.0,39227.0,0.326011]
[1646584693713,0.15748004,39233.0,39232.0,0.00418127]
[1646584693913,0.15748004,39233.0,39232.0,0.33015227]
[1646584694617,0.31056438,39240.0,39232.0,0.00418127]
[1646584694814,0.52442616,39241.0,39232.0,0.00418127]
[1646584695015,0.83499054,39241.0,39232.0,0.00418127]
[1646584695214,0.84519854,39241.0,39232.0,0.00418127]
[1646584695415,0.15191577,39240.0,39232.0,0.00418127]
[1646584695718,0.17522729,39233.0,39232.0,0.00418127]
[1646584695915,0.17522729,39233.0,39232.0,0.33014627]
[1646584696116,0.063775,39237.0,39232.0,0.33014627]
[1646584696455,0.19314962,39235.0,39232.0,0.00418127]
[1646584696855,0.31056438,39240.0,39233.0,0.325959]
[1646584697056,0.12556075,39240.0,39232.0,0.00418127]
[1646584697260,0.2033,39240.0,39232.0,0.00418127]
[1646584697456,0.16952337,39235.0,39233.0,0.325956]
[1646584697657,0.16952337,39235.0,39233.0,0.32596]
[1646584698263,0.16952337,39235.0,39232.0,0.00418127]
[1646584698460,0.063772,39238.0,39232.0,0.00418127]
[1646584699161,0.19088896,39239.0,39232.0,0.00418127]
[1646584699462,0.21166515,39234.0,39233.0,0.325958]
[1646584700307,0.21166515,39234.0,39232.0,0.00418127]
[1646584701205,0.21166515,39234.0,39233.0,0.325961]
[1646584701405,0.21166515,39234.0,39232.0,0.00418127]
[1646584702608,0.132286,39238.0,39232.0,0.00418127]
[1646584702806,0.063771,39238.0,39232.0,0.00418127]
[1646584703007,0.50145334,39239.0,39232.0,0.00418127]
[1646584703806,0.19088896,39239.0,39232.0,0.00418127]
[1646584704056,0.063771,39238.0,39232.0,0.00418127]
[1646584704264,0.19088896,39239.0,39232.0,0.00418127]
[1646584704855,0.19025594,39236.0,39232.0,0.00418127]
[1646584705055,0.2033,39240.0,39232.0,0.00418127]
[1646584706756,0.18289451,39234.0,39232.0,0.00418127]
[1646584706956,0.31056438,39239.0,39233.0,0.325956]
[1646584707157,0.12556075,39241.0,39232.0,0.00418127]
[1646584707355,0.43612513,39241.0,39232.0,0.00418127]
[1646584707556,0.06377,39239.0,39232.0,0.00418127]
[1646584708404,0.17942703,39233.0,39232.0,0.00418127]
[1646584708604,0.31056438,39238.0,39232.0,0.00418127]
[1646584708808,0.06026232,39238.0,39232.0,0.00418127]
[1646584709005,0.19703795,39235.0,39232.0,0.00418127]
[1646584709805,0.19173808,39234.0,39232.0,0.00418127]
[1646584710003,0.19173808,39234.0,39233.0,0.325958]
[1646584710206,0.19173808,39234.0,39233.0,0.325961]
[1646584710404,0.19173808,39234.0,39232.0,0.00418127]
[1646584710806,0.50230246,39234.0,39232.0,0.00418127]
[1646584711008,0.31056438,39233.0,39232.0,0.00418127]
[1646584711306,0.69569338,39233.0,39232.0,0.00418127]
[1646584711970,0.74669338,39233.0,39232.0,0.00418127]
[1646584712170,0.74669338,39233.0,39209.0,1.3328]
[1646584712171,0.191411,39227.0,39209.0,1.3328]
[1646584712371,0.36156438,39226.0,39221.0,0.00022534]
[1646584712566,0.385129,39225.0,39221.0,0.00022534]
[1646584712765,0.385129,39223.0,39221.0,0.00022534]
[1646584713167,0.39006929,39222.0,39221.0,0.00022534]
[1646584713366,0.57595626,39222.0,39209.0,0.2046]
[1646584713568,0.12761194,39220.0,39209.0,0.2046]
[1646584713869,0.12761194,39220.0,39214.0,0.00088132]
[1646584713870,0.063806,39217.0,39214.0,0.00088132]
[1646584714070,0.31056438,39216.0,39214.0,0.00088132]
[1646584714366,0.22854344,39216.0,39214.0,0.00088132]
[1646584714567,0.56088584,39215.0,39201.0,0.1999]
[1646584714766,0.14130347,39210.0,39201.0,0.1999]
[1646584714967,0.063817,39208.0,39207.0,0.00088141]
[1646584715411,0.127634,39208.0,39207.0,0.00088141]
[1646584715615,0.063817,39208.0,39207.0,0.00088141]
[1646584715810,0.22740424,39208.0,39200.0,0.01017614]
[1646584716009,0.22740424,39208.0,39206.0,0.00022035]
[1646584716411,0.22740424,39208.0,39207.0,0.326224]
[1646584716616,0.063817,39208.0,39206.0,0.00022035]
[1646584716814,0.063817,39208.0,39207.0,0.326223]
[1646584717012,0.063817,39208.0,39206.0,0.00022035]
[1646584717013,0.063817,39208.0,39200.0,0.01017614]
[1646584717215,0.063817,39208.0,39205.0,0.00021358]
[1646584718214,0.063817,39208.0,39201.0,0.326275]
[1646584718414,0.063817,39208.0,39205.0,0.00021359]
[1646584718615,0.191451,39209.0,39208.0,0.12763399]
[1646584719560,0.063818,39209.0,39208.0,0.12763399]
[1646584720163,0.063818,39209.0,39208.0,0.12263399]
[1646584720663,0.063813,39210.0,39208.0,0.12263399]
[1646584721265,0.063813,39210.0,39209.0,0.326204]
[1646584721465,0.063805,39214.0,39209.0,0.326203]
[1646584721664,0.063805,39214.0,39208.0,0.12263399]
[1646584721867,0.21162858,39213.0,39208.0,0.12263399]
[1646584722066,0.21162858,39213.0,39210.0,0.00022089]
[1646584723011,0.21162858,39213.0,39208.0,0.12263399]
[1646584723208,0.21162858,39213.0,39210.0,0.00022089]
[1646584723807,0.33925058,39213.0,39210.0,0.00022089]
[1646584724209,0.33925058,39213.0,39208.0,0.12263399]
[1646584724412,0.33925058,39213.0,39210.0,0.0002208]
[1646584725410,0.33925058,39213.0,39208.0,0.12263399]
[1646584725608,0.33925058,39213.0,39210.0,0.0002208]
[1646584726563,0.33925058,39213.0,39208.0,0.12263399]
[1646584726763,0.33925058,39213.0,39210.0,0.0002208]
[1646584727763,0.33925058,39213.0,39208.0,0.12263399]
[1646584727964,0.33925058,39213.0,39210.0,0.00020751]
[1646584730207,0.33925058,39213.0,39208.0,0.12263399]
[1646584730408,0.33925058,39213.0,39210.0,0.00020751]
[1646584731313,0.33925058,39213.0,39208.0,0.12263399]
[1646584731511,0.33925058,39213.0,39210.0,0.00020654]
[1646584731810,0.33925058,39213.0,39208.0,0.08284053]
[1646584733712,0.19144754,39212.0,39208.0,0.08284053]
[1646584734554,0.063816,39210.0,39208.0,0.08284053]
[1646584735154,0.25651532,39210.0,39208.0,0.08284053]
[1646584736756,0.063816,39210.0,39209.0,0.326201]
[1646584736960,0.063817,39212.0,39209.0,0.6336125]
[1646584737162,0.127586,39219.0,39209.0,0.6336125]
[1646584737811,0.127586,39219.0,39214.0,0.32615]
[1646584738011,0.127586,39219.0,39218.0,0.13134973]
[1646584738212,0.127586,39219.0,39218.0,0.45746173]
[1646584738213,0.31897276,39219.0,39218.0,0.45746173]
[1646584738910,0.19137876,39219.0,39218.0,0.45746173]
[1646584739512,0.19137876,39219.0,39218.0,0.76487323]
[1646584739713,0.19137876,39219.0,39218.0,0.45746173]
[1646584740312,0.19137876,39219.0,39218.0,0.76487323]
[1646584740616,0.221389,39225.0,39219.0,0.3261]
[1646584740617,0.191351,39224.0,39219.0,0.3261]
[1646584740813,0.005,39225.0,39219.0,0.6335115]
[1646584741015,0.47207123,39229.0,39224.0,0.326049]
[1646584741016,0.25177123,39229.0,39224.0,0.326049]
[1646584741213,0.11756,39229.0,39228.0,0.45736073]
[1646584741863,0.11756,39229.0,39228.0,0.326011]
[1646584741864,0.24511502,39229.0,39228.0,0.326011]
[1646584742059,0.18260166,39228.0,39223.0,0.326059]
[1646584742259,0.063791,39225.0,39214.0,0.3201415]
[1646584742468,0.063791,39225.0,39223.0,0.326062]
[1646584743059,0.15137109,39221.0,39215.0,0.326129]
[1646584743259,0.063793,39220.0,39219.0,0.13134973]
[1646584743462,0.063793,39220.0,39219.0,0.45745173]
[1646584743959,0.063793,39220.0,39219.0,0.07458673]
[1646584744560,0.22338319,39220.0,39219.0,0.07458673]
[1646584746007,0.22338319,39220.0,39219.0,0.0742434]
[1646584746407,0.063793,39220.0,39219.0,0.0742434]
[1646584747411,0.26961125,39220.0,39219.0,0.0742434]
[1646584750975,0.058793,39220.0,39219.0,0.0742434]
[1646584753610,0.122582,39220.0,39219.0,0.0742434]
[1646584761108,0.31670078,39220.0,39219.0,0.0742434]
[1646584761914,0.31670078,39220.0,39209.0,0.7139]
[1646584761915,0.063816,39217.0,39209.0,0.7139]
[1646584762111,0.063818,39215.0,39208.0,0.12276268]
[1646584762708,0.17199335,39212.0,39208.0,0.12172934]
[1646584762908,0.17199335,39212.0,39211.0,0.0742434]
[1646584763710,0.23580935,39212.0,39211.0,0.0742434]
[1646584764168,0.063816,39212.0,39211.0,0.0742434]
[1646584764361,0.25526595,39213.0,39211.0,0.0742434]
[1646584764362,0.12763495,39213.0,39211.0,0.0742434]
[1646584764560,0.12763495,39213.0,39212.0,0.0742434]
[1646584766364,0.30329079,39213.0,39212.0,0.0742434]
[1646584766561,0.12763495,39213.0,39212.0,0.0742434]
[1646584767562,0.32386514,39213.0,39212.0,0.0742434]
[1646584767813,0.12763495,39213.0,39212.0,0.0742434]
[1646584770513,0.12263495,39213.0,39212.0,0.0742434]
[1646584778417,0.12263495,39213.0,39208.0,0.12172934]
[1646584778617,0.12263495,39213.0,39208.0,0.12193599]
[1646584778618,0.063807,39212.0,39208.0,0.12193599]
[1646584778820,0.063807,39212.0,39211.0,0.0692434]
[1646584779663,0.25778082,39212.0,39211.0,0.0692434]
[1646584780067,0.063807,39212.0,39211.0,0.0692434]
[1646584780565,0.12263495,39213.0,39211.0,0.0692434]
[1646584780764,0.25025495,39213.0,39212.0,0.0692434]
[1646584782465,0.4334935,39213.0,39212.0,0.0692434]
[1646584782924,0.25025495,39213.0,39212.0,0.0692434]
[1646584783930,0.12263495,39213.0,39212.0,0.0692434]
[1646584786860,1.1,39212.0,39208.0,0.00020665]
[1646584787061,1.1,39209.0,39205.0,0.00082668]
[1646584787258,0.35915558,39208.0,39205.0,0.00082668]
[1646584787458,1.1,39206.0,39201.0,0.03737852]
[1646584787657,0.15893255,39207.0,39201.0,0.03737852]
[1646584787857,0.38920509,39205.0,39201.0,0.03737852]
[1646584788064,1.1,39203.0,39200.0,0.01017614]
[1646584788260,1.1,39201.0,39192.0,8.0]
[1646584788463,0.15,39196.0,39192.0,7.9746689]
[1646584788661,0.6519923,39200.0,39185.0,0.0021]
[1646584788662,0.15,39193.0,39185.0,0.0021]
[1646584788860,0.7215597,39192.0,39185.0,0.0021]
[1646584789063,0.7215597,39192.0,39171.0,0.4211]
[1646584789064,0.385167,39189.0,39171.0,0.4211]
[1646584789264,1.35551406,39186.0,39171.0,0.4172]
[1646584789465,0.35915558,39185.0,39171.0,0.4172]
[1646584789659,0.12775464,39184.0,39171.0,0.4172]
[1646584789860,0.12775464,39184.0,39172.0,0.0011]
[1646584789861,0.56368758,39183.0,39172.0,0.0011]
[1646584790062,0.06704393,39173.0,39172.0,0.0011]
[1646584790316,0.49333708,39175.0,39172.0,0.0074848]
[1646584790513,0.49333708,39175.0,39174.0,0.14]
[1646584790716,0.36557311,39175.0,39174.0,0.14]
[1646584791111,0.36557311,39175.0,39174.0,0.00638537]
[1646584791312,0.4294548,39175.0,39174.0,0.00638537]
[1646584791716,0.61679558,39175.0,39174.0,0.00638537]
[1646584791914,0.4294548,39175.0,39174.0,0.00618537]
[1646584792413,0.36557311,39175.0,39174.0,0.00618537]
[1646584793012,0.36557311,39175.0,39173.0,0.00022805]
[1646584793013,0.75,39174.0,39173.0,0.00022805]
[1646584793212,0.5759597,39175.0,39173.0,0.13384268]
[1646584793413,0.5759597,39175.0,39174.0,0.13361463]
[1646584793614,0.72952006,39175.0,39174.0,0.13361463]
[1646584793813,0.5759597,39175.0,39174.0,0.13361463]
[1646584794664,0.21743936,39176.0,39174.0,1.34753357]
[1646584794964,0.051,39187.0,39177.0,0.0257]
[1646584794965,0.15343685,39187.0,39177.0,0.0257]
[1646584795166,0.06384612,39186.0,39179.0,0.0257]
[1646584795365,0.06384612,39186.0,39181.0,0.0257]
[1646584795566,0.06384612,39186.0,39178.0,0.051]
[1646584795567,0.26072537,39183.0,39178.0,0.051]
[1646584795867,0.26072537,39183.0,39182.0,0.13361463]
[1646584796665,0.43691368,39183.0,39182.0,0.13361463]
[1646584797166,0.43691368,39183.0,39176.0,0.5584659]
[1646584797365,0.26072537,39183.0,39176.0,0.5584659]
[1646584797567,0.26072537,39183.0,39176.0,0.5841659]
[1646584797827,0.26072537,39183.0,39180.0,0.13361463]
[1646584798031,0.127726,39182.0,39176.0,0.85908228]
[1646584798227,0.063862,39180.0,39176.0,0.85908228]
[1646584798426,0.063862,39180.0,39176.0,0.5584659]
[1646584798826,0.063862,39180.0,39179.0,0.13361463]
[1646584799327,0.063862,39180.0,39176.0,0.55870146]
[1646584799530,0.127724,39180.0,39179.0,0.13361463]
[1646584799728,0.25545339,39180.0,39176.0,0.55870146]
[1646584799926,0.25545339,39180.0,39176.0,0.5584659]
[1646584800126,0.25545339,39180.0,39178.0,0.00023556]
[1646584800326,0.17043709,39179.0,39178.0,0.00023556]
[1646584800530,0.063878,39177.0,39176.0,0.5584659]
[1646584801129,0.063878,39177.0,39174.0,0.001]
[1646584801130,0.12008171,39177.0,39172.0,0.0011]
[1646584801332,0.127766,39175.0,39172.0,0.0011]
[1646584801563,0.127766,39175.0,39174.0,0.13361463]
[1646584802167,0.3023316,39175.0,39174.0,0.13361463]
[1646584802766,1.05,39174.0,39172.0,0.0011]
[1646584802965,1.05,39174.0,39173.0,0.1356]
[1646584803174,1.11355999,39172.0,39168.0,0.00134432]
[1646584803365,0.063893,39170.0,39168.0,0.00134432]
[1646584803568,0.063893,39170.0,39169.0,0.1356]
[1646584803965,0.21791382,39170.0,39169.0,0.1356]
[1646584804167,1.29121569,39169.0,39168.0,0.00147968]
[1646584804770,0.063894,39167.0,39163.0,0.03771732]
[1646584804967,0.063894,39167.0,39166.0,0.14]
[1646584805419,1.1,39166.0,39163.0,0.03771732]
[1646584805615,1.1,39166.0,39161.0,0.00590922]
[1646584805816,0.30272506,39165.0,39161.0,0.00590922]
[1646584806020,1.163906,39164.0,39155.0,0.42]
[1646584806217,1.163906,39164.0,39153.0,0.00027841]
[1646584806218,0.29587506,39163.0,39154.0,0.42]
[1646584806618,0.29587506,39163.0,39153.0,0.00027841]
[1646584806619,0.15478021,39156.0,39153.0,0.00027841]
[1646584806820,0.15478021,39156.0,39151.0,0.004]
[1646584806821,1.1,39153.0,39151.0,0.004]
[1646584807219,0.063918,39154.0,39151.0,0.004]
[1646584807526,0.063918,39154.0,39144.0,0.01]
[1646584807527,0.063925,39151.0,39144.0,0.01]
[1646584807822,0.15478021,39156.0,39147.0,0.1757]
[1646584807823,0.06390318,39156.0,39147.0,0.1757]
[1646584808021,0.06390318,39156.0,39149.0,0.0257]
[1646584808022,0.127809,39155.0,39149.0,0.0257]
[1646584808220,0.127809,39155.0,39148.0,0.30272506]
[1646584808419,0.127809,39155.0,39144.0,0.01]
[1646584808624,0.127809,39155.0,39144.0,0.31272506]
[1646584808625,0.16972284,39154.0,39144.0,0.31272506]
[1646584808822,0.16972284,39154.0,39150.0,0.00023591]
[1646584809064,0.0639,39155.0,39153.0,0.14]
[1646584809263,0.0639,39155.0,39150.0,0.00023591]
[1646584809664,0.0639,39155.0,39147.0,0.30272506]
[1646584809968,0.127807,39155.0,39151.0,0.0002359]
[1646584810364,0.0639,39155.0,39151.0,0.0002359]
[1646584811366,0.30272506,39154.0,39151.0,0.0001759]
[1646584811966,0.30272506,39154.0,39145.0,0.00094375]
[1646584812167,0.30272506,39154.0,39143.0,0.00040893]
[1646584812168,0.063927,39151.0,39143.0,0.00040893]
[1646584812369,0.063927,39151.0,39128.0,0.887]
[1646584812370,0.15757033,39140.0,39128.0,0.887]
[1646584812569,0.12787063,39142.0,39136.0,0.00638945]
[1646584812821,0.6,39145.0,39130.0,0.14]
[1646584813018,0.30152622,39144.0,39131.0,0.0257]
[1646584813220,0.20647001,39147.0,39129.0,0.01277]
[1646584813222,0.1863784,39136.0,39129.0,0.01277]
[1646584813421,0.05326448,39141.0,39136.0,0.00012585]
[1646584813618,0.12786853,39143.0,39136.0,0.00012585]
[1646584814018,0.13786853,39143.0,39128.0,0.41650346]
[1646584814218,0.1543553,39141.0,39129.0,0.21739411]
[1646584814520,0.063928,39143.0,39129.0,0.21727239]
[1646584814718,0.12786376,39140.0,39129.0,0.21727239]
[1646584814918,0.18710977,39137.0,39129.0,0.21727239]
[1646584815120,0.127864,39141.0,39130.0,0.0257]
[1646584815324,0.127864,39141.0,39129.0,0.31727239]
[1646584815620,0.063932,39137.0,39129.0,0.1]
[1646584815821,0.063932,39137.0,39128.0,0.41150346]
[1646584816221,0.063932,39137.0,39128.0,0.43720346]
[1646584816664,0.063926,39140.0,39133.0,0.05501215]
[1646584816865,0.142864,39141.0,39137.0,0.13361055]
[1646584816866,0.015,39141.0,39137.0,0.13361055]
[1646584817074,0.00023586,39149.0,39141.0,0.0257]
[1646584817266,0.00023586,39149.0,39145.0,0.13361055]
[1646584817464,0.00023586,39149.0,39148.0,0.13361055]
[1646584817664,0.00023586,39149.0,39143.0,0.1257]
[1646584817867,0.00023586,39149.0,39143.0,0.0257]
[1646584818066,0.06391,39151.0,39147.0,0.08361055]
[1646584818264,0.06391,39151.0,39142.0,0.051]
[1646584818265,0.0002359,39149.0,39142.0,0.0767]
[1646584818464,0.0002359,39149.0,39142.0,0.051]
[1646584818668,0.0002359,39149.0,39137.0,0.051]
[1646584818965,0.18541242,39147.0,39141.0,0.08361055]
[1646584819164,0.21363226,39146.0,39140.0,0.07480347]
[1646584819365,0.21363226,39146.0,39144.0,0.08361055]
[1646584819565,0.21363226,39146.0,39135.0,0.1]
[1646584819767,0.21363226,39146.0,39139.0,0.08361055]
[1646584819966,0.21363226,39146.0,39135.0,1.0]
[1646584820214,0.21363226,39146.0,39139.0,0.06668516]
[1646584820215,0.27755026,39146.0,39139.0,0.06668516]
[1646584820422,0.27755026,39146.0,39139.0,0.0257]
[1646584820818,0.27755026,39146.0,39136.0,0.1]
[1646584821618,0.063922,39143.0,39130.0,0.01346344]
[1646584821819,0.18090799,39137.0,39128.0,0.41150346]
[1646584822015,0.3,39142.0,39132.0,0.00638978]
[1646584822016,0.127879,39136.0,39132.0,0.00638978]
[1646584822216,0.18645885,39138.0,39135.0,0.00638978]
[1646584822415,0.18645885,39138.0,39128.0,0.41172348]
[1646584822416,0.305013,39148.0,39128.0,0.43742348]
[1646584822718,0.305013,39148.0,39136.0,0.0725222]
[1646584822719,0.063922,39145.0,39136.0,0.0725222]
[1646584822922,0.12785,39144.0,39136.0,0.0725222]
[1646584823117,0.005014,39146.0,39132.0,0.8031]
[1646584823319,0.305015,39148.0,39134.0,0.0257]
[1646584823518,0.005015,39148.0,39136.0,0.8031]
[1646584823719,0.00021989,39149.0,39136.0,0.9531]
[1646584823978,0.00021989,39149.0,39140.0,0.8199171]
[1646584824169,0.005018,39159.0,39142.0,0.8031]
[1646584824368,0.20732518,39153.0,39144.0,0.8031]
[1646584824568,0.18994138,39149.0,39144.0,0.8031]
[1646584824768,0.18994138,39149.0,39148.0,0.08361055]
[1646584825167,0.20732518,39153.0,39148.0,0.08361055]
[1646584825369,0.20732518,39153.0,39141.0,0.051]
[1646584825370,0.063911,39149.0,39141.0,0.051]
[1646584825682,0.063911,39149.0,39139.0,0.05539]
[1646584825683,0.3,39148.0,39139.0,0.05539]
[1646584825869,0.285,39148.0,39139.0,0.05539]
[1646584826072,0.025,39149.0,39139.0,0.05539]
[1646584826370,0.063914,39149.0,39139.0,0.05539]
[1646584826668,0.00020458,39150.0,39139.0,0.05539]
[1646584826669,0.17045071,39148.0,39139.0,0.05539]
[1646584826869,0.00020457,39149.0,39139.0,0.05539]
[1646584827070,0.00020457,39149.0,39140.0,0.051]
[1646584827272,0.00020457,39149.0,39141.0,0.8031]
[1646584827469,0.00020457,39149.0,39141.0,0.8541]
[1646584827719,0.063907,39152.0,39143.0,0.8031]
[1646584827921,0.00020565,39149.0,39145.0,0.0257]
[1646584828324,0.00020565,39149.0,39141.0,0.051]
[1646584828519,0.00020565,39149.0,39142.0,0.0257]
[1646584828722,0.00020565,39149.0,39143.0,0.0257]
[1646584828922,0.063918,39145.0,39139.0,0.05539]
[1646584829126,0.16255768,39147.0,39139.0,0.05539]
[1646584829727,0.22648168,39147.0,39139.0,0.05539]
[1646584829927,0.18013958,39141.0,39139.0,0.05539]
[1646584830130,0.063935,39141.0,39139.0,0.05539]
[1646584830324,0.2043657,39140.0,39139.0,0.05539]
[1646584830725,0.5043657,39140.0,39139.0,0.05539]
[1646584831326,0.2043657,39140.0,39139.0,0.05539]
[1646584831559,0.2043657,39140.0,39139.0,0.0368197]
[1646584832661,0.5043657,39140.0,39139.0,0.0368197]
[1646584832862,0.6043657,39140.0,39139.0,0.0368197]
[1646584833262,0.3043657,39140.0,39139.0,0.0368197]
[1646584833466,0.6043657,39140.0,39139.0,0.0368197]
[1646584833665,0.3043657,39140.0,39139.0,0.0368197]
[1646584833862,0.2993657,39140.0,39139.0,0.0368197]
[1646584834862,0.06394701,39137.0,39128.0,0.41150346]
[1646584835063,0.20600307,39131.0,39128.0,0.41150346]
[1646584835318,0.15483183,39133.0,39131.0,0.27579535]
[1646584835515,0.15483183,39133.0,39132.0,0.00639215]
[1646584835717,0.15483183,39133.0,39131.0,0.2671875]
[1646584835918,0.063944,39134.0,39131.0,0.2671875]
[1646584836121,0.006,39135.0,39131.0,0.2671875]
[1646584837218,0.27777172,39135.0,39131.0,0.2671875]
[1646584837820,0.063936,39135.0,39131.0,0.2671875]
[1646584838223,0.002,39139.0,39131.0,0.2671875]
[1646584838421,0.002,39139.0,39137.0,0.06898481]
[1646584838623,0.002,39139.0,39132.0,0.051]
[1646584838823,0.002,39139.0,39134.0,0.20939428]
[1646584839073,0.002,39139.0,39134.0,0.26039428]
[1646584839274,0.1714606,39144.0,39134.0,0.26039428]
[1646584839472,0.025,39150.0,39134.0,0.26039428]
[1646584839473,0.36392,39151.0,39134.0,0.26039428]
[1646584839674,0.127839,39150.0,39134.0,0.26039428]
[1646584839875,8.688e-05,39149.0,39134.0,1.03779428]
[1646584840073,0.15063141,39145.0,39134.0,1.03779428]
[1646584840274,8.688e-05,39149.0,39135.0,0.1]
[1646584840776,0.18225856,39148.0,39137.0,0.0613801]
[1646584840979,0.24617656,39148.0,39135.0,0.1]
[1646584841180,0.16232287,39142.0,39135.0,0.1]
[1646584841375,0.16232287,39142.0,39134.0,0.051]
[1646584841876,0.1919573,39138.0,39132.0,0.01277]
[1646584842076,0.1919573,39138.0,39131.0,0.2671875]
[1646584842475,0.17294102,39136.0,39131.0,0.2671875]
[1646584843519,0.50886754,39142.0,39131.0,0.2671875]
[1646584843721,0.20886754,39142.0,39131.0,0.2671875]
[1646584843918,0.001,39139.0,39131.0,0.2671875]
[1646584844619,0.17531222,39138.0,39131.0,0.2671875]
[1646584845820,0.19031222,39138.0,39131.0,0.2671875]
[1646584846466,0.25425422,39138.0,39131.0,0.2671875]
[1646584846670,0.16351004,39133.0,39131.0,0.2671875]
[1646584847868,0.22745304,39133.0,39131.0,0.2671875]
[1646584848568,0.15835875,39132.0,39131.0,0.2671875]
[1646584848773,0.063943,39133.0,39131.0,0.2671875]
[1646584849075,0.27280554,39136.0,39131.0,0.2671875]
[1646584849269,0.063938,39136.0,39131.0,0.2671875]
[1646584850529,0.20886754,39136.0,39131.0,0.2671875]
[1646584850731,0.002,39137.0,39131.0,0.2671875]
[1646584850732,0.21086754,39137.0,39131.0,0.2671875]
[1646584850926,0.002,39137.0,39131.0,0.2671875]
[1646584851126,0.21086754,39137.0,39131.0,0.2671875]
[1646584851329,0.22386754,39138.0,39131.0,0.2671875]
[1646584851827,0.20886754,39137.0,39131.0,0.2671875]
[1646584852027,0.22386754,39138.0,39131.0,0.2671875]
[1646584856076,0.015,39138.0,39131.0,0.2671875]
[1646584856676,0.20839984,39136.0,39131.0,0.2671875]
[1646584857277,0.46894534,39136.0,39131.0,0.2671875]
[1646584857575,0.20839984,39136.0,39131.0,0.2671875]
[1646584857824,0.3244805,39137.0,39131.0,0.2671875]
[1646584857825,0.2605455,39137.0,39131.0,0.2671875]
[1646584858026,0.003,39137.0,39131.0,0.2671875]
[1646584859622,0.015,39138.0,39131.0,0.2671875]
[1646584860025,0.015,39138.0,39131.0,1.0445875]
[1646584861126,0.22435288,39138.0,39131.0,1.0445875]
[1646584861766,0.015,39138.0,39131.0,1.0445875]
[1646584861971,0.015,39138.0,39131.0,0.2671875]
[1646584862168,0.22435288,39138.0,39131.0,0.2671875]
[1646584862369,0.00628135,39138.0,39132.0,0.7774]
[1646584862574,0.39016716,39144.0,39139.0,0.0257]
[1646584862575,0.2605455,39144.0,39139.0,0.0257]
[1646584862770,0.31294647,39146.0,39140.0,0.8284]
[1646584862771,0.2605455,39146.0,39140.0,0.8284]
[1646584863071,0.2605455,39147.0,39144.0,0.0772184]
[1646584863270,0.2605455,39147.0,39146.0,0.05636999]
[1646584865326,0.2605455,39147.0,39140.0,0.8284]
[1646584865526,0.2605455,39147.0,39142.0,0.7774]
[1646584865726,0.2755455,39147.0,39146.0,0.015]
[1646584866026,0.015,39147.0,39146.0,0.015]
[1646584866228,0.00481761,39147.0,39146.0,0.015]
[1646584868230,0.00481761,39147.0,39146.0,0.8434]
[1646584868428,0.00481761,39147.0,39146.0,1.1434]
[1646584868731,0.00481761,39147.0,39146.0,0.12236999]
[1646584869371,0.00481761,39147.0,39146.0,1.19976999]
[1646584870071,0.00481761,39147.0,39146.0,0.12236999]
[1646584870872,0.00481761,39147.0,39146.0,0.89976999]
[1646584871272,0.00481761,39147.0,39146.0,0.12236999]
[1646584871473,0.00481761,39147.0,39146.0,1.19976999]
[1646584871672,0.00481761,39147.0,39146.0,0.89976999]
[1646584871875,0.00481761,39147.0,39146.0,1.19976999]
[1646584872173,0.00481761,39147.0,39146.0,0.89976999]
[1646584872819,0.00481761,39147.0,39146.0,0.12236999]
[1646584873822,0.00481761,39147.0,39146.0,0.42236999]
[1646584874222,0.00481761,39147.0,39146.0,0.42317936]
[1646584874622,0.00481761,39147.0,39146.0,1.20057936]
[1646584875623,0.00481761,39147.0,39146.0,0.42317936]
[1646584875924,0.00481761,39147.0,39146.0,0.12317936]
[1646584876674,0.00481761,39147.0,39146.0,0.90057936]
[1646584876876,0.00481761,39147.0,39146.0,1.20057936]
[1646584877277,0.00481761,39147.0,39146.0,0.90057936]
[1646584878277,0.00481761,39147.0,39146.0,0.12317936]
[1646584879076,0.00481761,39147.0,39146.0,0.90057936]
[1646584879478,0.00481761,39147.0,39146.0,1.19976999]
[1646584879877,0.00481761,39147.0,39146.0,0.8434]
[1646584880079,0.00481761,39147.0,39146.0,0.12236999]
[1646584880529,0.00481761,39147.0,39146.0,0.015]
[1646584880927,0.00481761,39147.0,39146.0,0.07136999]
[1646584881127,0.00481761,39147.0,39146.0,0.37136999]
[1646584881328,0.00238917,39147.0,39146.0,0.37136999]
[1646584882027,0.00238917,39147.0,39146.0,0.3148]
[1646584882626,0.00238917,39147.0,39146.0,1.14856999]
[1646584882826,0.00238917,39147.0,39146.0,0.84856999]
[1646584883428,0.00238917,39147.0,39146.0,0.07116999]
[1646584884672,0.00238917,39147.0,39146.0,0.37116999]
[1646584884875,0.00238917,39147.0,39146.0,1.14856999]